bitfinex-derivatives/quotes_ETHF0:USTF0_20250911
["timestamp","ask_amount","ask_price","bid_price","bid_amount"]
[1757601221005,0.2052,4424.5,4424.4,0.4029]
[1757601221202,0.5268,4424.5,4424.4,0.6379]
[1757601221403,0.8583,4424.5,4424.4,0.235]
[1757601221803,0.5268,4424.5,4424.4,0.9546]
[1757601222206,0.2256,4424.6,4424.5,0.3167]
[1757601222413,0.2256,4424.6,4424.5,0.7196]
[1757601222623,0.7524,4424.6,4424.5,0.4029]
[1757601222816,0.7524,4424.6,4424.1,40.8]
[1757601222817,0.9591,4424.6,4424.1,40.8]
[1757601223020,0.8583,4424.0,4423.9,0.4359]
[1757601223319,0.8583,4424.0,4423.9,0.6379]
[1757601223624,0.8583,4424.0,4423.9,41.4379]
[1757601225024,0.8583,4424.0,4423.9,0.235]
[1757601225224,0.8583,4424.0,4423.9,0.6379]
[1757601225726,0.6516,4424.0,4423.9,0.6379]
[1757601226020,0.1248,4424.5,4423.9,0.9546]
[1757601226217,0.3216,4424.5,4423.9,0.6379]
[1757601226416,0.2256,4424.6,4424.5,0.7196]
[1757601226721,0.2256,4424.6,4424.5,0.4029]
[1757601226722,0.7524,4424.6,4424.5,0.4029]
[1757601226916,0.9591,4424.6,4424.5,0.4029]
[1757601227311,0.2256,4424.6,4424.5,0.7196]
[1757601227726,0.7524,4424.6,4424.5,0.7196]
[1757601228817,0.5472,4424.6,4424.5,0.7196]
[1757601229419,0.7524,4424.6,4424.5,0.4029]
[1757601229821,0.7524,4424.6,4424.4,0.235]
[1757601229822,0.9591,4424.6,4424.4,0.235]
[1757601230027,0.8583,4424.5,4424.4,0.235]
[1757601231025,0.3216,4424.4,4424.1,1.61256419]
[1757601231222,0.3216,4424.4,4424.3,0.7196]
[1757601231534,0.5472,4424.6,4424.5,0.4029]
[1757601231830,0.7524,4424.6,4424.5,0.4029]
[1757601232032,0.7335,4424.3,4424.2,1.61256419]
[1757601232341,0.3216,4424.4,4424.2,1.80932249]
[1757601232633,0.1248,4424.5,4424.2,1.80932249]
[1757601232634,0.7335,4424.3,4424.2,1.80932249]
[1757601232824,0.7335,4424.3,4424.2,1.60842249]
[1757601233024,0.3216,4424.2,4424.1,1.60842249]
[1757601233223,0.7335,4424.2,4424.1,1.60842249]
[1757601233627,0.3216,4424.1,4424.0,1.60842249]
[1757601233826,0.3216,4424.1,4424.0,2.32802249]
[1757601234026,0.5268,4424.1,4424.0,2.32802249]
[1757601234227,0.5268,4424.1,4424.0,0.7196]
[1757601234825,0.5268,4424.1,4424.0,2.32817995]
[1757601235033,0.5268,4424.1,4424.0,0.4029]
[1757601235331,0.7335,4423.7,4423.6,2.26806249]
[1757601235530,0.7335,4423.7,4423.6,0.4359]
[1757601235835,0.1248,4424.0,4423.4,0.4359]
[1757601235836,0.8583,4423.5,4423.4,0.4359]
[1757601236131,0.5268,4423.9,4423.8,0.4029]
[1757601236332,0.7335,4423.9,4423.6,40.8]
[1757601236532,0.4119,4423.7,4423.6,40.8]
[1757601236727,0.7335,4423.7,4423.6,1.60923009]
[1757601236930,0.1248,4424.5,4423.9,0.4029]
[1757601237129,0.2052,4424.0,4423.9,0.4029]
[1757601237329,0.6307,4424.0,4423.9,0.4029]
[1757601237533,0.8403,4424.0,4423.9,0.4029]
[1757601237935,0.5372,4424.0,4423.6,42.40923009]
[1757601238133,0.4095,4423.7,4423.5,1.60923009]
[1757601238433,0.1224,4424.0,4422.8,1.60923009]
[1757601238434,0.835,4423.0,4422.8,1.60923009]
[1757601238635,0.3031,4422.9,4422.8,1.60923009]
[1757601238834,0.7126,4422.9,4422.8,1.60923009]
[1757601239339,0.7126,4422.9,4422.8,0.4115]
[1757601239541,0.3031,4422.8,4422.7,42.40923009]
[1757601240734,0.4255,4423.0,4422.9,0.7039]
[1757601240935,0.3031,4422.9,4422.7,42.40923009]
[1757601241130,0.7126,4422.8,4422.7,40.8]
[1757601241330,0.503,4422.8,4422.7,41.0924]
[1757601241530,0.503,4422.8,4422.7,41.035]
[1757601241732,0.503,4422.8,4422.7,41.3274]
[1757601241932,0.3031,4423.0,4422.9,0.7039]
[1757601242240,0.2257,4423.1,4423.0,0.8124]
[1757601242637,0.4255,4424.0,4423.9,0.33]
[1757601243241,0.4279,4424.5,4423.9,0.4333]
[1757601243739,0.3031,4424.4,4423.9,0.4333]
[1757601243940,0.1248,4424.5,4423.9,0.4333]
[1757601244139,0.1248,4424.5,4423.9,0.33]
[1757601244140,0.3031,4424.4,4423.9,0.33]
[1757601244342,0.3223,4424.0,4423.9,0.165]
[1757601244534,0.3223,4424.0,4423.9,0.33]
[1757601244838,0.3031,4424.7,4424.4,0.33]
[1757601245036,0.3031,4424.9,4424.4,0.4333]
[1757601245235,0.4255,4425.0,4424.4,0.4333]
[1757601245438,0.6254,4425.0,4424.9,0.165]
[1757601245640,0.835,4425.0,4424.9,0.165]
[1757601245937,0.835,4425.0,4424.5,40.8]
[1757601246131,0.4095,4424.6,4424.3,1.60767621]
[1757601246436,0.7126,4424.2,4424.0,1.60767621]
[1757601246630,0.1224,4424.0,4423.9,1.60767621]
[1757601246832,0.6254,4424.0,4423.9,1.60767621]
[1757601247036,0.835,4424.0,4423.9,1.60767621]
[1757601247333,0.6254,4424.0,4423.9,1.93767621]
[1757601247538,0.835,4424.0,4423.9,1.77267621]
[1757601247843,0.3031,4423.9,4423.7,1.60767621]
[1757601248045,0.3031,4423.9,4423.4,1.60767621]
[1757601248342,0.4255,4423.5,4423.4,1.60767621]
[1757601248833,0.1224,4423.5,4422.9,2.03306249]
[1757601249042,0.1224,4423.0,4422.6,2.26806249]
[1757601249235,0.1224,4423.0,4422.6,0.235]
[1757601249434,0.3031,4422.9,4422.8,1.60963988]
[1757601249635,0.3031,4423.7,4422.9,0.1033]
[1757601249835,0.3031,4423.7,4422.6,2.01188584]
[1757601249836,0.3031,4423.7,4423.3,1.60939777]
[1757601250044,0.3031,4423.4,4423.3,1.60939777]
[1757601250231,0.3031,4423.2,4423.1,1.60939777]
[1757601250436,0.835,4423.0,4422.8,1.60939777]
[1757601250637,0.7126,4422.9,4422.8,1.60939777]
[1757601251032,0.3031,4422.8,4422.5,1.60939777]
[1757601251237,0.7126,4422.6,4422.5,1.60939777]
[1757601251434,0.4255,4422.5,4422.4,42.40939777]
[1757601252147,0.3031,4422.5,4422.4,42.51269777]
[1757601252954,0.6254,4423.0,4422.9,0.33]
[1757601253247,0.835,4424.0,4423.2,0.1033]
[1757601253551,0.4255,4424.0,4423.2,1.71269777]
[1757601253746,0.4255,4424.0,4423.3,1.60939777]
[1757601254143,0.1224,4424.5,4423.4,1.71269777]
[1757601254345,0.3031,4424.4,4423.6,0.1033]
[1757601254551,0.3031,4424.4,4423.7,0.235]
[1757601254848,0.1224,4424.5,4423.5,1.60939777]
[1757601254849,0.1224,4424.0,4423.5,1.60939777]
[1757601255048,0.1224,4424.0,4423.5,1.71269777]
[1757601255551,0.3031,4423.9,4423.5,1.60939777]
[1757601255946,0.1224,4424.0,4423.5,1.60939777]
[1757601256248,0.3031,4423.9,4423.5,1.60939777]
[1757601256451,0.1224,4423.5,4423.3,0.235]
[1757601256650,0.3031,4423.4,4423.3,0.235]
[1757601256948,0.1224,4423.5,4423.3,40.8]
[1757601257249,0.3031,4423.4,4423.3,40.8]
[1757601257556,0.4255,4423.0,4422.9,1.608198]
[1757601257945,0.4255,4423.0,4422.9,42.408198]
[1757601259148,0.3031,4422.9,4422.8,1.608198]
[1757601259444,0.1224,4422.5,4422.3,1.608198]
[1757601259656,0.3031,4422.4,4422.3,1.608198]
[1757601259950,0.1224,4423.0,4422.4,0.1033]
[1757601260153,0.1224,4422.5,4422.4,1.60897747]
[1757601260453,0.3031,4422.5,4422.3,1.84397747]
[1757601260756,0.4255,4423.0,4422.3,1.94727747]
[1757601260950,0.4255,4423.5,4422.5,0.1033]
[1757601261253,0.4255,4423.5,4422.9,1.71227747]
[1757601261254,0.3031,4423.5,4422.9,1.71227747]
[1757601261548,0.3031,4423.5,4423.1,0.1033]
[1757601262047,0.3031,4423.5,4423.0,1.84397747]
[1757601262253,0.3031,4423.9,4423.1,0.1033]
[1757601262449,0.1224,4424.5,4423.2,1.60897747]
[1757601262657,0.3031,4423.9,4423.2,1.60897747]
[1757601263350,0.3031,4423.9,4423.3,1.60897747]
[1757601263745,0.1224,4423.5,4423.3,1.60897747]
[1757601263948,0.3031,4423.4,4423.3,1.60897747]
[1757601264147,0.1224,4423.5,4423.0,1.60897747]
[1757601264351,0.1224,4423.5,4422.8,1.60897747]
[1757601264653,0.3031,4422.9,4422.8,1.60897747]
[1757601264956,0.3031,4422.9,4422.7,1.60897747]
[1757601265155,0.3031,4422.9,4422.6,42.40897747]
[1757601266051,0.1224,4423.0,4422.6,42.40897747]
[1757601266357,0.3031,4422.9,4422.6,42.40897747]
[1757601266747,0.3031,4423.4,4422.8,1.60897747]
[1757601266951,0.3031,4423.4,4423.1,0.1033]
[1757601267148,0.3031,4423.9,4423.2,0.1033]
[1757601267550,0.2982,4423.4,4423.1,1.60990788]
[1757601267750,0.1255,4423.5,4423.0,1.60990788]
[1757601268260,0.2982,4423.4,4423.1,0.103]
[1757601268751,0.1255,4423.5,4423.1,0.103]
[1757601269058,0.2982,4423.4,4423.1,1.71290788]
[1757601269554,0.1255,4423.5,4423.1,1.60990788]
[1757601269955,0.2982,4423.9,4423.2,1.71290788]
[1757601270657,0.2982,4424.1,4423.4,1.71290788]
[1757601271254,0.1224,4424.5,4423.7,0.103]
[1757601271459,0.1255,4425.5,4423.6,1.60990788]
[1757601271460,0.2982,4425.3,4424.4,1.60990788]
[1757601271760,0.4237,4425.5,4425.2,0.103]
[1757601271956,0.2982,4425.4,4425.1,1.84335538]
[1757601272149,0.2982,4425.4,4425.2,0.103]
[1757601272347,0.4237,4426.0,4425.3,1.71135538]
[1757601272962,0.4237,4426.0,4425.4,40.8]
[1757601273160,32.6885,4427.0,4425.7,1.60835538]
[1757601273161,0.2982,4426.6,4425.7,1.60835538]
[1757601273357,0.4237,4427.0,4426.2,0.103]
[1757601273662,0.4237,4427.0,4426.2,0.338]
[1757601273861,0.4237,4427.0,4426.2,1.94635538]
[1757601274356,0.4237,4427.0,4426.2,0.338]
[1757601274555,0.4237,4427.0,4426.2,2.10133148]
[1757601275254,0.2982,4427.0,4426.3,0.103]
[1757601275558,0.4237,4427.0,4426.3,0.103]
[1757601275956,0.1255,4427.0,4426.4,0.235]
[1757601276156,0.2982,4426.9,4426.4,0.235]
[1757601276358,0.2982,4426.9,4425.9,0.103]
[1757601276664,0.2982,4426.9,4426.0,0.235]
[1757601276859,0.1255,4427.0,4425.6,1.79033038]
[1757601277059,0.1255,4426.0,4425.4,40.8]
[1757601277557,0.1255,4426.0,4425.5,0.235]
[1757601277762,0.2982,4425.9,4425.5,0.235]
[1757601277955,0.1255,4426.5,4425.6,0.103]
[1757601278157,0.2982,4426.6,4425.7,0.103]
[1757601278760,0.1255,4426.5,4425.8,41.035]
[1757601278963,0.1255,4426.5,4425.9,0.235]
[1757601279154,0.2982,4426.4,4425.9,0.235]
[1757601279355,0.1255,4426.5,4425.9,0.235]
[1757601279951,0.2982,4425.9,4425.8,41.035]
[1757601280865,0.2982,4425.9,4425.8,40.8]
[1757601281658,0.1255,4427.0,4425.9,0.103]
[1757601282061,0.2982,4426.9,4425.9,0.103]
[1757601282366,0.2982,4425.9,4425.8,40.8]
[1757601283458,0.2982,4426.4,4425.8,40.8]
[1757601283666,0.2982,4425.9,4425.8,41.036]
[1757601284360,0.2982,4425.9,4425.8,40.8]
[1757601284555,0.2982,4425.9,4425.0,0.237]
[1757601284762,0.2982,4425.4,4424.1,0.103]
[1757601284962,0.2982,4425.4,4424.2,0.237]
[1757601285262,0.2982,4425.4,4424.3,40.8]
[1757601285464,0.2982,4425.4,4424.4,0.103]
[1757601285765,0.2982,4425.4,4424.5,0.103]
[1757601286068,0.2982,4425.4,4424.7,0.103]
[1757601286667,0.2982,4425.9,4424.7,0.103]
[1757601286860,0.2982,4425.9,4424.9,0.103]
[1757601287065,0.2982,4425.9,4425.1,0.103]
[1757601288864,0.2982,4426.4,4425.3,0.103]
[1757601289756,0.2982,4426.9,4425.8,0.40659]
[1757601289955,0.2982,4426.9,4426.0,0.103]
[1757601290358,0.2982,4426.9,4426.1,2.8836372]
[1757601290563,0.2982,4426.9,4426.2,40.9033]
[1757601291258,0.2982,4426.9,4426.3,0.236]
[1757601292761,0.2982,4426.9,4426.2,40.8]
[1757601293068,0.1255,4426.5,4426.3,0.236]
[1757601293367,0.2982,4426.4,4426.3,0.236]
[1757601294373,0.1255,4427.5,4426.4,0.1033]
[1757601294559,0.2982,4427.6,4426.6,0.1033]
[1757601294871,0.2982,4427.6,4427.0,0.1033]
[1757601295066,0.2982,4427.6,4427.1,0.238]
[1757601295273,0.2982,4427.6,4427.2,0.1033]
[1757601295469,0.2982,4428.1,4427.2,0.1033]
[1757601295771,0.2982,4428.1,4427.3,0.1033]
[1757601296561,0.2982,4428.1,4427.4,2.98609823]
[1757601296758,0.2982,4428.1,4427.5,0.3403]
[1757601297379,0.2981,4427.9,4427.5,0.3403]
[1757601297667,0.1254,4428.0,4427.5,0.3403]
[1757601298170,0.2981,4427.9,4427.6,0.1033]
[1757601298871,0.4236,4429.0,4427.7,0.22585]
[1757601299074,0.4236,4429.0,4427.8,0.50971]
[1757601299268,0.4236,4429.0,4428.0,0.1033]
[1757601299476,0.4236,4429.0,4428.0,0.50969]
[1757601299674,0.2981,4428.8,4428.1,2.92364778]
[1757601300069,0.2981,4428.8,4428.0,0.1033]
[1757601300271,0.1254,4428.5,4428.1,0.238]
[1757601300470,0.2981,4428.4,4428.2,40.8]
[1757601300959,0.1254,4428.5,4428.2,40.8]
[1757601301462,0.2981,4428.4,4428.2,40.8]
[1757601301664,0.1254,4428.0,4426.9,1.60835538]
[1757601301871,0.2981,4427.9,4426.4,1.60835538]
[1757601302164,0.52399,4427.9,4426.6,0.3141]
[1757601302366,0.1254,4426.5,4426.1,2.89721611]
[1757601302561,0.2981,4426.4,4425.7,0.239]
[1757601302763,0.1254,4427.0,4425.8,0.3141]
[1757601303070,0.2981,4427.9,4426.6,0.3141]
[1757601303272,0.2981,4427.9,4426.7,0.239]
[1757601303973,0.2981,4427.9,4426.8,0.3141]
[1757601304276,0.2981,4427.9,4427.1,0.3141]
[1757601304464,0.2981,4427.9,4427.3,0.3141]
[1757601304668,0.2981,4428.4,4427.3,0.3141]
[1757601305874,0.2981,4428.4,4427.3,0.72055]
[1757601306171,0.2981,4428.4,4427.3,0.3141]
[1757601307578,0.2981,4428.4,4427.4,0.40644]
[1757601307777,0.2981,4428.4,4427.5,0.3141]
[1757601308279,0.2981,4428.4,4427.6,40.8]
[1757601308576,0.2981,4428.8,4427.6,43.77967491]
[1757601308879,0.2981,4428.8,4427.8,0.3141]
[1757601309972,0.2981,4428.8,4427.9,0.239]
[1757601310371,0.4681,4428.9,4428.0,0.4196]
[1757601310581,0.2981,4428.8,4428.0,0.3141]
[1757601311774,0.17,4428.9,4428.0,0.3141]
[1757601311977,0.2981,4429.9,4429.2,0.40628]
[1757601312172,0.2981,4429.9,4429.4,0.3141]
[1757601312376,0.2981,4430.4,4429.4,0.3141]
[1757601313079,0.2981,4430.9,4429.6,0.3141]
[1757601313277,0.52382,4430.9,4429.6,0.3141]
[1757601313484,0.2981,4430.9,4429.7,0.241]
[1757601313774,0.2981,4430.9,4430.1,40.8]
[1757601313977,0.2981,4431.4,4430.5,0.1055]
[1757601314281,0.2981,4431.4,4430.7,0.3141]
[1757601314674,0.2981,4431.4,4430.8,0.241]
[1757601314870,0.2981,4431.4,4430.9,0.241]
[1757601315078,0.1254,4431.5,4430.9,0.241]
[1757601315279,0.4235,4431.5,4430.9,0.241]
[1757601315582,0.2981,4431.5,4430.9,0.241]
[1757601316187,0.2981,4431.5,4431.0,0.3141]
[1757601316375,0.2981,4431.9,4431.0,0.3141]
[1757601317084,0.2981,4431.9,4430.9,0.241]
[1757601317385,0.2981,4431.8,4430.8,1.8116791]
[1757601317686,0.1254,4432.0,4430.8,0.241]
[1757601317687,0.2981,4430.9,4430.8,0.241]
[1757601317886,0.2981,4432.4,4430.8,1.77539932]
[1757601318185,0.2981,4432.4,4431.1,0.7202]
[1757601318380,0.2981,4432.4,4432.1,40.8]
[1757601318586,0.2981,4432.9,4432.2,0.243]
[1757601318972,0.2981,4432.9,4432.1,41.1141]
[1757601319181,0.2981,4432.9,4432.1,41.3571]
[1757601320384,0.1254,4433.0,4432.1,41.3571]
[1757601320385,0.1254,4433.0,4432.1,40.8]
[1757601320683,0.2981,4432.9,4432.1,40.8]
[1757601320883,0.1254,4433.0,4432.1,40.8]
[1757601321083,0.2981,4432.9,4432.1,40.8]
[1757601321283,0.1254,4433.0,4432.1,40.8]
[1757601321480,0.2981,4432.9,4432.1,40.8]
[1757601321781,0.2981,4433.4,4432.3,0.3141]
[1757601322382,0.2981,4433.4,4432.3,0.49261962]
[1757601322587,0.2981,4433.4,4432.6,0.3141]
[1757601322773,0.2981,4433.4,4432.7,0.243]
[1757601322979,0.1254,4433.5,4432.1,41.1141]
[1757601323288,0.2981,4433.4,4432.2,0.243]
[1757601323478,0.2981,4433.4,4432.1,41.1141]
[1757601323479,0.2981,4433.4,4432.3,0.243]
[1757601323786,0.2981,4432.4,4432.1,41.043]
[1757601323987,0.2981,4432.9,4432.2,0.3141]
[1757601324384,0.1254,4433.0,4432.1,41.043]
[1757601324580,0.2981,4432.9,4432.2,0.243]
[1757601324788,0.1254,4433.0,4432.1,41.043]
[1757601324989,0.1254,4433.0,4432.1,40.8]
[1757601325284,0.2981,4432.4,4432.1,40.8]
[1757601325485,0.1254,4432.5,4432.1,40.8]
[1757601325686,0.2981,4432.4,4432.1,40.8]
[1757601326188,0.2981,4432.4,4431.2,0.3141]
[1757601326189,4.2981,4432.4,4431.2,0.3141]
[1757601326387,0.1254,4431.5,4431.2,0.243]
[1757601326687,0.1254,4431.5,4430.8,1.81944903]
[1757601326884,0.2981,4431.4,4430.7,0.243]
[1757601327389,0.2981,4431.4,4429.7,32.506]
[1757601327390,0.3025,4430.9,4430.8,40.8]
[1757601327586,0.3025,4430.9,4429.7,32.8062]
[1757601327893,0.3025,4430.4,4429.8,0.243]
[1757601328187,0.3025,4429.9,4429.4,0.09]
[1757601328385,0.1229,4430.0,4429.4,0.09]
[1757601328580,0.3025,4430.0,4429.4,0.09]
[1757601328782,0.1229,4430.0,4429.3,0.243]
[1757601329091,0.3025,4429.9,4428.9,0.243]
[1757601329280,0.52827,4429.9,4428.9,0.243]
[1757601329485,0.3025,4429.9,4429.0,40.8]
[1757601329789,0.1229,4429.5,4429.0,40.8]
[1757601329982,0.3025,4429.4,4428.3,0.243]
[1757601330380,0.3025,4429.4,4428.4,0.3002]
[1757601330593,0.1229,4430.0,4428.6,0.3002]
[1757601330786,0.3025,4429.9,4428.8,0.3002]
[1757601331185,0.3025,4429.9,4428.9,40.8]
[1757601331378,0.1229,4430.0,4428.9,40.8]
[1757601331583,0.3025,4429.9,4428.9,40.8]
[1757601332080,0.1229,4430.0,4428.9,41.1002]
[1757601332283,0.3025,4429.9,4428.9,41.1002]
[1757601332788,0.3025,4429.9,4429.0,0.3002]
[1757601332987,0.3025,4429.9,4429.0,0.5432]
[1757601333286,0.22576001,4429.9,4428.4,1.79406123]
[1757601333493,0.3025,4429.8,4428.5,0.3002]
[1757601333691,0.3025,4429.8,4428.6,0.3002]
[1757601333898,0.3025,4429.8,4428.7,0.3002]
[1757601334088,0.3025,4429.8,4428.9,0.3002]
[1757601334592,0.3025,4430.4,4429.1,0.3002]
[1757601335690,0.52825,4430.4,4429.1,0.3002]
[1757601335885,0.3025,4430.4,4429.1,0.3002]
[1757601336090,0.22575,4430.3,4429.1,0.3002]
[1757601336286,0.3025,4430.2,4428.9,0.243]
[1757601336591,0.22575,4430.2,4428.6,41.1002]
[1757601336798,0.3025,4429.9,4428.6,41.3432]
[1757601337295,0.3025,4429.9,4428.6,40.8]
[1757601337691,0.3025,4429.7,4428.6,40.8]
[1757601337887,0.2254,4429.8,4428.6,40.8]
[1757601338088,0.31077,4429.7,4428.6,40.8]
[1757601338288,0.1229,4429.5,4428.6,40.8]
[1757601338492,0.3025,4429.4,4428.6,40.8]
[1757601338890,0.1229,4429.5,4428.6,40.8]
[1757601339091,0.3025,4429.4,4428.6,40.8]
[1757601339591,0.3025,4428.4,4428.1,0.242]
[1757601339899,0.3025,4428.9,4428.2,0.3002]
[1757601340093,0.3025,4428.9,4428.3,40.8]
[1757601340400,0.3025,4428.4,4427.7,0.3002]
[1757601340694,0.3025,4428.4,4427.2,0.3002]
[1757601340899,0.3025,4428.4,4427.3,40.8]
[1757601341095,0.1229,4429.0,4427.5,0.1056]
[1757601341289,0.3025,4428.9,4427.7,0.3002]
[1757601346405,0.3025,4428.9,4427.8,40.8]
[1757601346701,0.3025,4428.9,4427.9,0.3002]
[1757601347499,0.3025,4428.9,4428.1,0.3002]
[1757601348299,0.1229,4428.5,4426.6,1.60835538]
[1757601348501,0.3025,4428.4,4426.6,0.3002]
[1757601348697,0.60636,4428.4,4426.6,0.3002]
[1757601348903,0.22586,4428.3,4426.7,40.8]
[1757601349103,0.3025,4428.2,4426.7,40.8]
[1757601349299,0.1229,4428.0,4426.8,0.3002]
[1757601349495,0.3025,4427.9,4426.8,0.3002]
[1757601354110,0.3025,4427.7,4426.5,0.245]
[1757601354304,0.3025,4427.7,4426.6,40.8]
[1757601354499,0.3025,4427.9,4426.6,40.8]
[1757601354907,0.1229,4428.0,4426.6,40.8]
[1757601355102,0.3025,4427.9,4426.6,40.8]
[1757601355511,0.1229,4428.0,4426.6,40.8]
[1757601355806,0.1229,4427.0,4426.6,40.8]
[1757601356011,0.3025,4426.9,4426.6,40.8]
[1757601356310,0.1229,4427.0,4426.6,40.8]
[1757601356611,0.3025,4426.9,4426.0,0.244]
[1757601356807,0.3025,4426.9,4426.1,0.3002]
[1757601357004,0.3025,4426.9,4426.0,2.14129779]
[1757601357005,0.3025,4427.4,4426.3,0.3002]
[1757601357712,0.1229,4428.0,4426.6,0.3063]
[1757601357913,0.297,4428.1,4426.8,0.3063]
[1757601358108,0.1229,4428.5,4426.8,0.3063]
[1757601358303,0.297,4428.6,4427.2,1.60835538]
[1757601358502,0.297,4428.6,4427.5,0.1067]
[1757601358709,0.297,4428.6,4427.6,0.3063]
[1757601358905,0.297,4429.1,4427.8,0.3063]
[1757601359313,0.1257,4429.5,4427.9,0.7127]
[1757601359506,0.1257,4429.5,4428.1,0.3063]
[1757601359707,0.1257,4429.5,4428.2,0.245]
[1757601360015,0.297,4429.6,4428.3,0.3063]
[1757601360513,0.297,4429.6,4428.3,1.91465538]
[1757601360711,0.297,4429.4,4428.4,0.5513]
[1757601361215,0.2254,4429.3,4428.6,0.3063]
[1757601362209,0.297,4429.2,4428.6,0.3063]
[1757601362404,0.2254,4429.3,4428.6,0.3063]
[1757601362612,0.2254,4429.3,4429.1,0.3063]
[1757601362812,0.2254,4429.3,4429.0,0.1066]
[1757601363014,0.2254,4429.3,4429.1,0.3063]
[1757601363610,0.2254,4429.3,4429.0,0.3506]
[1757601363812,0.2254,4429.3,4429.1,0.3063]
[1757601364314,0.2254,4429.3,4429.2,0.3063]
[1757601365218,0.4227,4429.0,4428.7,40.8]
[1757601365514,0.1257,4429.0,4427.6,0.5503]
[1757601365706,0.297,4427.9,4427.2,0.3063]
[1757601365909,0.297,4427.9,4427.3,40.8]
[1757601366106,0.297,4428.4,4427.4,0.3063]
[1757601366315,0.297,4428.4,4427.6,0.3063]
[1757601366508,0.297,4428.9,4427.6,0.3063]
[1757601367417,0.297,4428.9,4427.7,1.91465538]
[1757601367613,0.297,4428.9,4427.8,0.244]
[1757601367917,0.297,4428.9,4427.7,0.3063]
[1757601368212,0.297,4428.9,4427.8,0.244]
[1757601368911,0.244,4429.4,4427.3,42.40835538]
[1757601369113,0.244,4429.4,4427.3,41.044]
[1757601369315,0.244,4429.4,4427.3,40.8]
[1757601369609,0.297,4428.9,4427.4,0.3063]
[1757601369810,0.541,4428.9,4427.6,0.3063]
[1757601370419,0.52282,4428.8,4427.4,0.244]
[1757601370718,0.1257,4427.5,4427.3,40.8]
[1757601370917,0.297,4427.4,4427.3,40.8]
[1757601371113,0.297,4427.4,4426.7,0.244]
[1757601371314,0.297,4427.4,4426.7,0.5503]
[1757601371514,0.297,4427.4,4426.8,40.8]
[1757601371712,0.1257,4427.5,4426.8,40.8]
[1757601372014,0.297,4427.4,4426.8,40.8]
[1757601372517,0.297,4427.9,4426.9,0.3063]
[1757601372713,0.297,4427.9,4426.8,40.8]
[1757601372913,0.1257,4428.0,4426.8,40.8]
[1757601373218,0.297,4427.9,4426.8,40.8]
[1757601373411,0.1257,4428.0,4426.5,0.5503]
[1757601373716,0.297,4427.9,4426.6,0.3063]
[1757601373915,0.297,4427.9,4426.8,0.3063]
[1757601374617,0.297,4427.9,4426.7,40.8]
[1757601374808,0.297,4427.9,4426.8,0.3063]
[1757601375218,0.297,4427.9,4426.9,0.244]
[1757601375415,0.297,4427.9,4427.0,0.4129]
[1757601375615,0.297,4428.4,4427.1,0.3063]
[1757601376110,0.297,4428.4,4427.2,0.3063]
[1757601379309,0.297,4428.4,4427.4,0.3063]
[1757601379516,0.297,4428.4,4427.6,0.3063]
[1757601380423,0.297,4428.4,4427.6,0.48899923]
[1757601381323,0.297,4428.9,4427.7,0.3063]
[1757601381523,0.297,4428.9,4427.8,0.3063]
[1757601382415,0.297,4428.9,4427.8,1.91465538]
[1757601382618,0.297,4428.9,4427.8,0.3063]
[1757601383523,0.297,4428.9,4428.1,1.91465538]
[1757601383821,0.297,4428.9,4428.2,0.3063]
[1757601384320,0.297,4428.9,4428.2,1.60835538]
[1757601384517,0.297,4428.9,4428.3,0.3063]
[1757601384918,0.297,4429.4,4428.4,40.8]
[1757601385523,0.2254,4429.3,4428.4,40.8]
[1757601386123,0.297,4429.2,4428.4,40.8]
[1757601386325,0.2254,4429.3,4428.4,40.8]
[1757601386522,0.297,4429.2,4428.4,40.8]
[1757601386919,0.297,4429.2,4428.5,0.3063]
[1757601387626,0.2254,4429.3,4428.4,40.8]
[1757601387821,0.3073,4429.2,4428.4,40.8]
[1757601388524,0.2254,4429.3,4428.4,40.8]
[1757601389129,0.3073,4429.2,4428.4,40.8]
[1757601390324,0.8456,4428.5,4428.1,1.60835538]
[1757601390534,0.7226,4428.1,4428.0,1.80445538]
[1757601390718,0.3073,4428.4,4428.1,0.3186]
[1757601391024,0.7226,4428.4,4428.3,0.3964]
[1757601391235,0.2082,4428.5,4428.4,0.715]
[1757601391420,0.123,4429.0,4428.3,0.2003]
[1757601391625,0.123,4429.0,4428.1,1.60835538]
[1757601391626,0.7226,4428.9,4428.4,0.3186]
[1757601391829,0.3073,4428.8,4428.1,1.60835538]
[1757601392035,0.5493,4428.8,4428.0,2.03405538]
[1757601392226,0.242,4429.1,4428.7,0.715]
[1757601392421,0.4502,4429.1,4429.0,0.3964]
[1757601392728,0.5327,4429.3,4429.2,0.3964]
[1757601392928,0.5327,4429.3,4429.2,0.715]
[1757601393232,0.2254,4429.3,4429.2,0.715]
[1757601393429,0.2254,4429.3,4429.2,2.32335538]
[1757601393829,0.2254,4429.3,4429.2,43.12335538]
[1757601395428,0.5327,4429.3,4429.2,43.12335538]
[1757601395628,0.4153,4429.2,4429.0,1.60835538]
[1757601395825,0.123,4429.0,4428.9,1.60835538]
[1757601396029,0.8456,4429.0,4428.9,0.1961]